Cogmind - Beta 16 @@@ ROGUE MODE // 2025.10.30 @ 16:44:02 Player: Salivanth Result: Destroyed by as-60379 with Assembled Rifle Performance ------------- Evolutions (1) 500 Regions Visited (4) 800 Robots Destroyed (38) 190 Value Destroyed (1225) 1225 Prototype IDs (0) 0 Alien Tech Used (0) 0 Bonus (0) 0 TOTAL SCORE: 2715 Bonus ------- None Cogmind --------- Core Integrity 0/400 Matter 90/300 Energy 100/100 System Corruption 14% Temperature Cool (0) Movement Walking (120) Location -9/Mines Parts ------- > --- POWER (1) -------- (None) > --- PROPULSION (2) --- Aluminum Leg Aluminum Leg > --- UTILITY (2) ------ (None) > --- WEAPON (4) ------- (None) > --- INVENTORY (5) ---- Heat Sink Structural Scanner Experimental Sensor Array Peak State ------------ > --- POWER ------------ Light Nuclear Core > --- PROPULSION ------- Aluminum Leg Aluminum Leg > --- UTILITY ---------- Small Storage Unit Medium Armor Plating > --- WEAPON ----------- Small Laser Assault Cannon Assault Cannon Rocket Launcher > --- INVENTORY -------- Aluminum Leg Aluminum Leg Heat Sink High-capacity Battery Structural Scanner Light Cannon Assault Cannon Assault Cannon [Rating: 18] Favorites ----------- Power Light Nuclear Core Engine Light Ion Engine Power Core Light Nuclear Core Propulsion Aluminum Leg Leg Aluminum Leg Utility Small Storage Unit Storage Small Storage Unit Processor Signal Interpreter Hackware Hacking Suite Protection Medium Armor Plating Weapon Small Laser Energy Gun Small Laser Ballistic Gun Assault Rifle Ballistic Cannon Assault Cannon Launcher Rocket Launcher Build | -11 -10 -10 -9 -9 ------- Run | Yrd Mat Min Mat Min Slots Evolved 2 | . . . 2 . Power . | . . . . . Propulsion . | . . . . . Utility . | . . . . . Weapon 2 | . . . 2 . Parts Attached 29 | 6 8 1 9 5 Power 3 | 1 2 . . . Engine 2 | 1 1 . . . Core 1 | . 1 . . . Reactor . | . . . . . Propulsion 9 | 2 3 . 2 2 Treads . | . . . . . Leg 9 | 2 3 . 2 2 Wheel . | . . . . . Hover . | . . . . . Flight . | . . . . . Utility 4 | 1 1 . 1 1 Device . | . . . . . Storage 1 | 1 . . . . Processor 1 | . 1 . . . Hackware 1 | . . . . 1 Protection 1 | . . . 1 . Artifact . | . . . . . Weapon 13 | 2 2 1 6 2 Energy Gun 4 | 1 1 . 2 . Energy Cannon . | . . . . . Ballistic Gun 2 | 1 1 . . . Ballistic Cannon 5 | . . 1 2 2 Launcher 2 | . . . 2 . Special Weapon . | . . . . . Impact Weapon . | . . . . . Slashing Weapon . | . . . . . Piercing Weapon . | . . . . . Special Melee Weapon . | . . . . . Unidentified Prototypes . | . . . . . Parts Lost 16 | . 3 . 2 11 Power 3 | . 2 . 1 . Propulsion 2 | . . . . 2 Utility 3 | . . . . 3 Weapon 8 | . 1 . 1 6 Highest Loss Streak 11 | . 2 . 1 11 To Critical Strikes . | . . . . . Average Backups 6 | . 5 8 7 6 Power . | . . . . . Propulsion 2 | . 1 3 2 1 Utility 2 | . . 2 3 3 Weapon 1 | . 2 3 1 1 Tool/Special . | . . . . . Unused Backups 4 | . . . . 4 Power . | . . . . . Propulsion . | . . . . . Utility 4 | . . . . 4 Weapon . | . . . . . Tool/Special . | . . . . . Average Slot Usage (%) 94 | . 96 100 95 61 Engine 2 | . 9 . . . Core 7 | . 3 14 8 . Leg 24 | . 28 28 22 19 Storage 12 | . 14 14 11 7 Processor 6 | . 12 14 . . Protection 4 | . . . 10 4 Energy Gun 14 | . 19 19 11 5 Ballistic Gun 4 | . 8 . 4 . Ballistic Cannon 10 | . . 8 17 17 Launcher 4 | . . . 9 6 Peak Build Rating 18 | 6 9 9 18 18 Average Rating 10 | 4 7 9 15 10 On Entrance 7 | . 6 9 9 15 Avg Prop Armor Cover (%) . | . . . . . Naked Turns 6 | . . . . 6 Heaviest Build 32 | 11 12 14 32 27 Greatest Support 20 | 20 20 20 20 20 Greatest Overweight (x) 3 | . . . 1 3 Average Overweight (x) . | . . . . . Largest Inventory Capacity 8 | 8 8 8 8 8 Average Capacity 7 | 6 8 8 8 6 Most Carried 8 | 2 8 8 8 8 Average Carried 6 | . 5 7 7 6 Final Capacity 8 | 8 8 8 8 5 Final Carried 8 | 1 8 8 8 3 Class Distribution -------------------- 55% | Mutant 26% | Scavenger-Tank 14% | Tank 3% | Gunner Dominant Class ---------------- Mutant | -10/Materials Mutant | -10/Mines Scavenger-Tank | -9/Materials Mutant | -9/Mines Resources | -11 -10 -10 -9 -9 ----------- Run | Yrd Mat Min Mat Min Matter Collected 785 | 229 145 64 255 92 Remotely . | . . . . . Salvage Created 1187 | . 414 105 637 31 Parts 75 | . 26 6 40 3 Haulers Intercepted . | . . . . . Recyclers Shooed 4 | . . . 2 2 Parts Field Recycled . | . . . . . Retrieved Matter . | . . . . . Parts Self-Destructed . | . . . . . Prevented . | . . . . . Parts Restored . | . . . . . Kills | -11 -10 -10 -9 -9 ------- Run | Yrd Mat Min Mat Min Combat Hostiles Destroyed 37 | . 11 5 15 6 Guns 16 | . 11 3 2 . Cannons 13 | . . 2 9 2 AOE 8 | . . . 4 4 Classes Destroyed 9 | . 3 . 4 2 Builder 2 | . . . 2 . Mechanic 1 | . . . 1 . Watcher 2 | . 1 . 1 . Swarmer 6 | . 3 3 . . Grunt 18 | . 8 2 8 . Brawler 1 | . . . 1 . Sentry 6 | . . . 6 . Demolisher 2 | . . . . 2 Assembled 4 | . . . . 4 Best Kill Streak 6 | . 4 2 5 6 Combat Bots Only 6 | . 4 2 3 6 Max Kills in Single Turn 2 | . 1 1 2 2 Gunslinging . | . . . . . Exploded 2 | . . . 1 2 Melee . | . . . . . Uniques/NPCs Destroyed . | . . . . . Combat | -11 -10 -10 -9 -9 -------- Run | Yrd Mat Min Mat Min Hostile Shots Fired 199 | . 74 23 28 74 Missed 52 | . 18 10 6 18 Hits 147 | . 56 13 22 56 Melee 9 | . . . . 9 Projectile 138 | . 56 13 22 47 AOE 5 | . . . . 5 Damage Taken 2653 | . 612 118 352 1571 Core 556 | . 115 30 27 384 Absorbed by Shields . | . . . . . Core Remaining (%) 71 | 100 . 42 . . Volleys Fired 89 | . 41 15 25 8 Largest 4 | . 2 2 4 4 Hottest 147 | . 80 70 147 147 Shots Fired 216 | . 80 30 77 29 Gun 132 | . 80 15 33 4 Cannon 69 | . . 15 34 20 Launcher 15 | . . . 10 5 Special . | . . . . . Kinetic 109 | . 29 15 45 20 Thermal 91 | . 51 15 21 4 Explosive 15 | . . . 10 5 Electromagnetic 1 | . . . 1 . Robot Hit Streak 9 | . 9 8 6 5 Robot Miss Streak 5 | . 4 3 3 5 Penetration Max . | . . . . . Secondary Targets 1 | . 1 . . . Max Gunslinging Chain 1 | . 1 . . . Shots Hit Robots 124 | . 48 21 40 15 Core Hits 77 | . 22 8 31 16 Critical Kills . | . . . . . Critical Parts Destroyed . | . . . . . Critical Strikes 1 | . . . . 1 Blast 1 | . . . . 1 Melee Attacks . | . . . . . Impact . | . . . . . Slashing . | . . . . . Piercing . | . . . . . Sneak Attacks . | . . . . . Combat Hostiles . | . . . . . Follow-up Attacks . | . . . . . Damage Inflicted 2289 | . 494 291 939 565 Guns 860 | . 494 121 233 12 Cannons 802 | . . 170 395 237 Explosions 617 | . . . 301 316 Melee . | . . . . . Ramming 10 | . . . 10 . Kinetic 1027 | . 136 170 484 237 Thermal 635 | . 358 121 144 12 Explosive 617 | . . . 301 316 Electromagnetic . | . . . . . Impact . | . . . . . Slashing . | . . . . . Piercing . | . . . . . Highest Corruption 14 | . 1 1 . 14 Average Corruption 2 | . 1 1 . 11 Corruption Purged . | . . . . . Corruption Blocked . | . . . . . Effects 6 | . 1 1 . 4 Message Errors 1 | . . . . 1 Matter Fused 1 | . 1 . . . Heat Flow Errors 1 | . . 1 . . Energy Discharges 1 | . . . . 1 Data Loss (major) 1 | . . . . 1 Misdirections 1 | . . . . 1 Overload Shots . | . . . . . Overflow Damage 26 | . . . 24 2 Projectiles . | . . . . . Explosions 26 | . . . 24 2 Melee . | . . . . . Knockbacks 10 | . . 5 . 5 Impact . | . . . . . Kinetic 10 | . . 5 . 5 Secondary . | . . . . . Self-Inflicted Damage 124 | . . . 69 55 Shots 4 | . . . 1 3 Rammed . | . . . . . Targets Rammed 2 | . . . 2 . Kicked 2 | . . . 2 . Crushed . | . . . . . Highest Temperature 366 | . 94 127 366 140 Average Temperature 60 | . 30 43 97 64 Received Heat Transfer 481 | . 312 15 105 49 Effects 3 | . . . 3 . Energy Bleed 1 | . . . 1 . Interference 2 | . . . 2 . Siege Activations . | . . . . . Martial Activations . | . . . . . Shielding Activations . | . . . . . Robots Disrupted . | . . . . . Combat Hostiles . | . . . . . Robots Corrupted . | . . . . . Combat Hostiles . | . . . . . Parts Fried . | . . . . . Impact Corruptions . | . . . . . Robots Melted . | . . . . . Combat Hostiles . | . . . . . Parts Melted 1 | . . 1 . . Heat Transferred 1425 | . 800 275 325 25 Parts Sabotaged . | . . . . . Parts Stolen . | . . . . . Parts Stripped . | . . . . . Power Chain Reactions . | . . . . . Alert | -11 -10 -10 -9 -9 ------- Run | Yrd Mat Min Mat Min Maximum Alert Level 1 | . . . 1 . Low Security (%) 75 | 100 100 100 39 100 Level 1 24 | . . . 60 . Level 2 . | . . . . . Level 3 . | . . . . . Level 4 . | . . . . . Level 5 . | . . . . . High Security . | . . . . . Max Security . | . . . . . Peak Influence 377 | . 157 140 377 97 Initial 63 | . . 33 46 63 Average 131 | . 73 34 244 42 Influence Increases 1134 | . 279 180 590 85 Destroy 0b10 Robot/C 660 | . 220 100 300 40 Destroy 0b10 Robot/NC 25 | . 5 . 20 . Destroy Leader 174 | . 52 20 92 10 Successful Hack 2 | . 2 . . . Disable Machine 90 | . . 30 60 . Destroy Structure 123 | . . . 103 20 Lose Combat Pursuer 60 | . . 30 15 15 Influence Decreases 1134 | . 192 147 546 249 Entered New Map 229 | . . 54 74 101 Time Decay 597 | . 162 93 302 40 Lost Part 158 | . 30 . 20 108 Purge Threat 150 | . . . 150 . Squads Dispatched 6 | . 3 . 2 1 Investigation 1 | . 1 . . . Extermination . | . . . . . Reinforcement 5 | . 2 . 2 1 Assault . | . . . . . Garrison . | . . . . . Intercept . | . . . . . Searches Triggered . | . . . . . Construction Impeded 2 | . . . 1 1 Haulers Reinforced . | . . . . . Active Scanning Responses . | . . . . . Cargo Convoy Interrupts . | . . . . . Stealth | -11 -10 -10 -9 -9 --------- Run | Yrd Mat Min Mat Min Distress Signals 3 | . 2 . 1 . Communications Jammed . | . . . . . Distress Signals . | . . . . . Times Spotted 68 | . 17 7 21 23 Peak Tracking Total 11 | . 4 3 3 11 Tactical Retreats 5 | . . 1 1 3 Traps | -11 -10 -10 -9 -9 ------- Run | Yrd Mat Min Mat Min Traps Triggered 1 | . 1 . . . Indirectly . | . . . . . Trap Hack Attempts . | . . . . . Triggered . | . . . . . Disarmed . | . . . . . Reprogrammed . | . . . . . Reused . | . . . . . Traps Extracted . | . . . . . Installed . | . . . . . Triggered . | . . . . . Machines | -11 -10 -10 -9 -9 ---------- Run | Yrd Mat Min Mat Min Machines Disabled 6 | . . 2 4 . Max in Single Turn 2 | . . 1 2 . Machines Repaired . | . . . . . Machines Dismantled . | . . . . . Machines Sabotaged . | . . . . . Overloaded Fab Kills . | . . . . . Hacking | -11 -10 -10 -9 -9 --------- Run | Yrd Mat Min Mat Min Machines Accessed 7 | . 3 . 4 . Terminals 7 | . 3 . 4 . Fabricators . | . . . . . Repair Stations . | . . . . . Recycling Units . | . . . . . Scanalyzers . | . . . . . Garrison Access . | . . . . . Total Hacks 23 | . 13 . 10 . Successful 6 | . 4 . 2 . Failed 16 | . 8 . 8 . Catastrophic 2 | . 1 . 1 . Database Lockouts 1 | . 1 . . . Manual . | . . . . . Terminals 23 | . 13 . 10 . Fabricators . | . . . . . Repair Stations . | . . . . . Recycling Units . | . . . . . Scanalyzers . | . . . . . Garrison Access . | . . . . . Terminal Hacks 6 | . 4 . 2 . Record 4 | . 4 . . . Unreport Threat 1 | . . . 1 . Recall Investigation 1 | . . . 1 . Fabricator Hacks . | . . . . . Repair Station Hacks . | . . . . . Recycling Unit Hacks . | . . . . . Scanalyzer . | . . . . . Garrison Access Hacks . | . . . . . Unauthorized Hacks . | . . . . . Terminals . | . . . . . Fabricators . | . . . . . Repair Stations . | . . . . . Recycling Units . | . . . . . Scanalyzers . | . . . . . Garrison Access . | . . . . . Data Cores Recovered . | . . . . . Used . | . . . . . Hacking Detections 7 | . 3 . 4 . Full Trace Events 1 | . 1 . . . Feedback Events 1 | . 1 . . . Corruption 1 | . 1 . . . Feedback Blocked . | . . . . . Robot Schematics Acquired . | . . . . . Robots Built . | . . . . . Authchips . | . . . . . Time . | . . . . . Total Robot Build Rating . | . . . . . Part Schematics Acquired . | . . . . . Parts Built . | . . . . . Authchips . | . . . . . Time . | . . . . . Total Part Build Rating . | . . . . . Part Studies Acquired . | . . . . . Parts Repaired . | . . . . . Time . | . . . . . Parts Recycled . | . . . . . Recycled Matter . | . . . . . Retrieved Matter . | . . . . . Retrieved Components . | . . . . . Parts Scanalyzed . | . . . . . Part Schematics Acquired . | . . . . . Parts Damaged . | . . . . . Bothacking | -11 -10 -10 -9 -9 ------------ Run | Yrd Mat Min Mat Min Used RIF Installer . | . . . . . Robots Hacked . | . . . . . Non-combat . | . . . . . Combat . | . . . . . Robot Hacks Applied . | . . . . . Relay Couplers Released . | . . . . . Fabnet Peak Effective % . | . . . . . Robots Rewired . | . . . . . Allies Hacked . | . . . . . Hacks Repelled . | . . . . . Allies | -11 -10 -10 -9 -9 -------- Run | Yrd Mat Min Mat Min Total Allies . | . . . . . Largest Group . | . . . . . Highest-Rated Group . | . . . . . Highest-Rated Ally . | . . . . . Total Orders . | . . . . . Ally Attacks . | . . . . . Total Damage . | . . . . . Kills . | . . . . . Allies Corrupted . | . . . . . Allies Melted . | . . . . . Intel | -11 -10 -10 -9 -9 ------- Run | Yrd Mat Min Mat Min Active Infowar (turns) . | . . . . . Robot Analysis Total . | . . . . . Derelict Logs Recovered 2 | . . 2 . . Drone Launches . | . . . . . Drone Recoveries . | . . . . . Exploration | -11 -10 -10 -9 -9 ------------- Run | Yrd Mat Min Mat Min Turns Passed 1621 | 63 470 307 669 112 Spaces Moved 856 | 46 245 210 296 59 Core 23 | 7 . . . 16 Treads . | . . . . . Legs 833 | 39 245 210 296 43 Wheels . | . . . . . Hover . | . . . . . Flight . | . . . . . Fastest Speed 50 | 50 120 120 120 50 Average Speed 142 | 109 120 120 183 132 Slowest Speed 200 | 120 120 120 190 200 Overloaded Moves . | . . . . . Propulsion Burnouts . | . . . . . Robots Hopped . | . . . . . Potential Cave-ins 4 | . . . . 4 Cave-ins Triggered 2 | . . . . 2 Exploration Rate (%) 31 | 3 40 44 46 23 Regions Visited 4 Branch Regions 2 Pre-discovered Areas 1 | . . 1 . . Known Exits Taken 2 | . 1 1 . . Unknown Exits Taken 2 | 1 . . 1 . Scrap Searched . | . . . . . Spaces Dug . | . . . . . Terrain Destroyed 155 | . . . 117 38 Melee . | . . . . . Projectile 15 | . . . 9 6 AOE 140 | . . . 108 32 Terrain Rammed . | . . . . . Walls Destroyed . | . . . . . Machines Disabled . | . . . . . Actions | -11 -10 -10 -9 -9 --------- Run | Yrd Mat Min Mat Min Total 1076 | 58 345 235 364 74 Wait 57 | . 35 6 16 . Move 852 | 45 244 209 295 59 Hop . | . . . . . Pick Up 32 | 7 13 2 9 1 Fast Attach 1 | . . . 1 . Attach 18 | 6 4 . 3 5 Detach . | . . . . . Swap 13 | . 6 1 6 . Drop 12 | . 2 2 7 1 Fire 89 | . 41 15 25 8 Melee . | . . . . . Ram . | . . . . . Kick 2 | . . . 2 . Crush . | . . . . . Escape Stasis . | . . . . . Rewire . | . . . . . Trap . | . . . . . Miscellaneous . | . . . . . Route ------- -11/Scrapyard -10/Materials -10/Mines -9/Materials (discovered 2 exits: [*Min x2]) -9/Mines History --------- Turn | Location | Event 13 | -11/Scrapyard | Discovered new exit (range 15) 64 | -11/Scrapyard | Entered Materials 313 | -10/Materials | Build established: Mutant 470 | -10/Materials | Central database locked down 511 | -10/Materials | Discovered new exit (range 7) 533 | -10/Materials | Identified exit to Mines 534 | -10/Materials | Entered Mines 635 | -10/Mines | Received a Rocket Launcher from a helpful Derelict 726 | -10/Mines | Core integrity fell below 50% 823 | -10/Mines | Discovered new exit (range 16) 824 | -10/Mines | Learned Materials interactive machine intel 836 | -10/Mines | Learned location of Zion (-7) 840 | -10/Mines | Identified exit to Materials 841 | -10/Mines | Entered Materials 841 | -9/Materials | Evolved 2 slots: Weapon x2 842 | -9/Materials | Loaded intel: 18 interactive machine locations 983 | -9/Materials | Discovered new exit (range 8) 1216 | -9/Materials | Build established: Scavenger-Tank 1487 | -9/Materials | Discovered new exit (range 7) 1510 | -9/Materials | Entered Mines 1517 | -9/Mines | Assembled infested the area 1531 | -9/Mines | Found a damaged Exp. Sensor Array with a note attached 1536 | -9/Mines | Found Prototype Device 1578 | -9/Mines | System corruption reached 10% 1581 | -9/Mines | Crushed by falling debris 1584 | -9/Mines | Crushed by falling debris 1584 | -9/Mines | Core integrity fell below 50% 1594 | -9/Mines | Core integrity fell below 20% 1622 | -9/Mines | Destroyed by as-60379 with Assembled Rifle Last Messages --------------- 01582_ Aluminum Leg destroyed. 01582_ Sml. Storage Unit destroyed. 01582_ K-01 Serf collects debris. 01582_ as-06615 destroyed. 01584_ The unstable cave ceiling collapses. 01584_ Crushed by falling debris. 01584_ Assault Cannon destroyed. 01584_ System corrupted by crushing effect (+2). 01587_ System corrupted: Substantial component data lost. 01587_ Assault Cannon destroyed. 01589_ The unstable cave ceiling collapses. 01591_ K-01 Serf destroyed. 01592_ Assault Cannon destroyed. 01599_ T-07 Excavator destroyed. 01601_ R-06 Scavenger destroyed. 01606_ Matter Pump disabled. 01612_ 43>V||,HDPM9P&0WIKSYSHVJ35UFTR:X7ZW 01620_ G-47 Trooper destroyed. 01622_ The unstable cave ceiling collapses. Map ----- +----------------------------------------------------+ | ?????????????????????????####### [##????????????? | | ???????????????????????????????# =#????????????? | | ???????????????????????????????# #????????????? | | ???????????????????????????????## ##????????????? | | ??????????????????????????###### ####???????????? | | ???????????????????????#### # ## #???????????? | | ???????????????????????# # ###########??? | | ??????????????????????## % % ? | | ??????????????????????# # # % ! ? | | ??????????????????????# ! "## ####???? | | ??????????????????????# # %! % #??????????? | | ??????????????????????## # #??????????? | | ?????????????????????### ## #??????????? | | ???????????? ## # #####??????????? | | ???????????? #### # %# # #??????????????? | | ????????????## ???### ## ## #??????????????? | | ?????????????? ??# ?## #??????????????? | | ??????????????? ??# ### ###### ????????? | | ???????????????# ??# ## ?????? | | ??????????????## ?## ????? | | ?????????????## ## a = ####### ?????? | | ????????###### % |% #??????????????? | | ???????## ! ! # #####??????????????? | | ???????# =%* ####?????????????????? | | ??????## =%* ##????????????????? | | ????? = ""% a @ #????????????????? | | ?????? ! """ a #???????????????? | | ?????????# = """ a ##### #??????????????? | | ???????????## ##???## #??????????????? | | ????????????## ##?????#### #??????????????? | | ????????????## ##???????? $#??????????????? | | ????????????# #####????? ?????????????? | | ????????????# ##?????##?????????????? | | ????????????## ### #????????????????????? | | ?????????????## #??## #????????????????????? | | ??????????????##????### #????????????????????? | | ??????????????????????#######????????????????????? | | ?????????????????????????????????????????????????? | | ?????????????????????????????????????????????????? | | ?????????????????????????????????????????????????? | | ?????????????????????????????????????????????????? | | ?????????????????????????????????????????????????? | | | | | | | | | | | | | | | | | +----------------------------------------------------+ Best States ------------- Heat Dissipation 28 Energy Generation 14 Energy Capacity 160 Matter Stores 300 Matter Capacity 300 Sight Range 16 Terrain Scan Density 10 Armor Coverage 225 Evasion (%) 55 Offensive Hacking 10 Item Schematics ----------------- None Robot Schematics ------------------ None Fabricated ------------ Nothing Repaired ---------- Nothing Studied --------- None Alien Tech Used ----------------- None Achievements -------------- Everything Is Under Control System Compromised Challenges ------------ None Game ------ Seed StasisReactionGriptreads Manual? 0 Play Time 00:21:51 Cumulative 4.1 hours Start 2025.10.30 @ 16:24:47 End 2025.10.30 @ 16:44:02 Sessions 1 Manual Loads 0 Difficulty Rogue Special Mode None Game No. 11 Rogue 11 Adventurer 0 Explorer 0 Win Type - Total 0 Types 0/0/0/0/0/0/0/0/0/0 Lore% 7 Gallery% 8 Achievement% 8 Wizard Run 0 Options --------- Layout 1 ASCII 0 Keyboard 0 Movement Mouse Keybinds 0 Fullscreen 1 Font 24/Smallcaps Map View 50x35 Zoom Use 0% Tactical HUD 1 Map Filters NONE Filters NONE Steam 1 RUN: ea035c20-bce3-45f3-8ed5-aaa9c021f4a7